fUSD/lending_fUSD_20260612
["ID","MTS","AMOUNT","RATE_DAILY","PERIOD"]
[424894638,1781250647000,-295.39287249,0.00013488,2]
[424894628,1781250647000,-494.47000223,0.00013321,2]
[424894625,1781250647000,-166.66,0.00013101,2]
[424894599,1781250647000,-1000.0,0.00012153,2]
[424894606,1781250647000,-674.69498212,0.00012689,2]
[424894588,1781250647000,-424.35353106,0.00011973,2]
[424894587,1781250647000,-830.05668291,0.00011973,2]
[424894592,1781250647000,-190.94161941,0.00011973,2]
[424894591,1781250647000,-190.94161941,0.00011973,2]
[424894589,1781250647000,-69212.0301587,0.00011973,2]
[424894590,1781250647000,-52468.31873997,0.00011973,2]
[424894598,1781250647000,-215.99183634,0.00012077,2]
[424894639,1781250647000,-166.66,0.0001363,2]
[424894593,1781250647000,-371.42617154,0.00011973,2]
[424894595,1781250647000,-500.0,0.00012072,2]
[424894594,1781250647000,-500.0,0.00012072,2]
[424894614,1781250647000,-936.88,0.00012986,2]
[424894596,1781250647000,-647.50203212,0.00012072,2]
[424894611,1781250647000,-200.0,0.00012973,2]
[424894612,1781250647000,-4601.78,0.00012983,2]
[424894603,1781250647000,-803.18078731,0.00012531,2]
[424894600,1781250647000,-1472.683,0.00012157,2]
[424894602,1781250647000,-674.69498212,0.00012373,2]
[424894604,1781250647000,-166.66,0.00012572,2]
[424894608,1781250647000,-166.66,0.00012836,2]
[424894610,1781250647000,-500.0,0.0001287,2]
[424894607,1781250647000,-2928.26,0.00012714,2]
[424894609,1781250647000,-150.0,0.00012854,2]
[424894605,1781250647000,-287.82,0.00012611,2]
[424894601,1781250647000,-890.61,0.00012158,2]
[424894646,1781250647000,-500.0,0.00013698,2]
[424894597,1781250647000,-1433.43741035,0.00012073,2]
[424894637,1781250647000,-190.82024742,0.00013488,2]
[424894675,1781250647000,-500.0,0.00013699,2]
[424894674,1781250647000,-500.0,0.00013699,2]
[424894672,1781250647000,-500.0,0.00013699,2]
[424894673,1781250647000,-500.0,0.00013699,2]
[424894671,1781250647000,-500.0,0.00013699,2]
[424894678,1781250647000,-500.0,0.00013699,2]
[424894676,1781250647000,-288.47841819,0.00013699,2]
[424894677,1781250647000,-211.52158181,0.00013699,2]
[424894680,1781250647000,-500.0,0.00013699,2]
[424894679,1781250647000,-500.0,0.00013699,2]
[424894681,1781250647000,-500.0,0.00013699,2]
[424894670,1781250647000,-500.0,0.00013699,2]
[424894682,1781250647000,-500.0,0.00013699,2]
[424894684,1781250647000,-500.0,0.00013699,2]
[424894687,1781250647000,-500.0,0.00013699,2]
[424894689,1781250647000,-500.0,0.00013699,2]
[424894691,1781250647000,-500.0,0.00013699,2]
[424894686,1781250647000,-500.0,0.00013699,2]
[424894688,1781250647000,-500.0,0.00013699,2]
[424894692,1781250647000,-500.0,0.00013699,2]
[424894690,1781250647000,-500.0,0.00013699,2]
[424894693,1781250647000,-500.0,0.00013699,2]
[424894694,1781250647000,-500.0,0.00013699,2]
[424894640,1781250647000,-494.47000223,0.00013636,2]
[424894685,1781250647000,-500.0,0.00013699,2]
[424894669,1781250647000,-500.0,0.00013699,2]
[424894683,1781250647000,-500.0,0.00013699,2]
[424894668,1781250647000,-500.0,0.00013699,2]
[424894644,1781250647000,-500.0,0.00013698,2]
[424894666,1781250647000,-500.0,0.00013699,2]
[424894645,1781250647000,-513.58758268,0.00013698,2]
[424894641,1781250647000,-674.69498212,0.00013636,2]
[424894642,1781250647000,-1821.73,0.0001366,2]
[424894643,1781250647000,-500.0,0.00013698,2]
[424894648,1781250647000,-500.0,0.00013698,2]
[424894650,1781250647000,-500.0,0.00013698,2]
[424894652,1781250647000,-500.0,0.00013698,2]
[424894658,1781250647000,-500.0,0.00013699,2]
[424894656,1781250647000,-500.0,0.00013699,2]
[424894657,1781250647000,-500.0,0.00013699,2]
[424894649,1781250647000,-500.0,0.00013698,2]
[424894663,1781250647000,-500.0,0.00013699,2]
[424894655,1781250647000,-200.0,0.00013699,2]
[424894653,1781250647000,-500.0,0.00013698,2]
[424894651,1781250647000,-500.0,0.00013698,2]
[424894667,1781250647000,-500.0,0.00013699,2]
[424894660,1781250647000,-500.0,0.00013699,2]
[424894659,1781250647000,-500.0,0.00013699,2]
[424894662,1781250647000,-500.0,0.00013699,2]
[424894661,1781250647000,-500.0,0.00013699,2]
[424894664,1781250647000,-500.0,0.00013699,2]
[424894654,1781250647000,-500.0,0.00013698,2]
[424894665,1781250647000,-500.0,0.00013699,2]
[424894736,1781250648000,-753.48754442,0.00013699,2]
[424894725,1781250648000,-761.81995012,0.00013699,2]
[424894733,1781250648000,-753.48754442,0.00013699,2]
[424894734,1781250648000,-753.48754442,0.00013699,2]
[424894731,1781250648000,-761.81995012,0.00013699,2]
[424894724,1781250648000,-761.81995012,0.00013699,2]
[424894742,1781250648000,-753.48754442,0.00013699,2]
[424894729,1781250648000,-761.81995012,0.00013699,2]
[424894726,1781250648000,-761.81995012,0.00013699,2]
[424894740,1781250648000,-753.48754442,0.00013699,2]
[424894732,1781250648000,-761.81995012,0.00013699,2]
[424894735,1781250648000,-753.48754442,0.00013699,2]
[424894747,1781250648000,-753.48754442,0.00013699,2]
[424894738,1781250648000,-753.48754442,0.00013699,2]
[424894737,1781250648000,-753.48754442,0.00013699,2]
[424894741,1781250648000,-753.48754442,0.00013699,2]
[424894744,1781250648000,-753.48754442,0.00013699,2]
[424894745,1781250648000,-753.48754442,0.00013699,2]
[424894743,1781250648000,-753.48754442,0.00013699,2]
[424894754,1781250648000,-1821.73,0.00013985,2]
[424894748,1781250648000,-753.48754442,0.00013699,2]
[424894755,1781250648000,-200.0,0.00014,5]
[424894746,1781250648000,-753.48754442,0.00013699,2]
[424894749,1781250648000,-22286.25,0.00013699,2]
[424894730,1781250648000,-761.81995012,0.00013699,2]
[424894739,1781250648000,-753.48754442,0.00013699,2]
[424894728,1781250648000,-761.81995012,0.00013699,2]
[424894698,1781250648000,-500.0,0.00013699,2]
[424894721,1781250648000,-761.81995012,0.00013699,2]
[424894695,1781250648000,-628.14279953,0.00013699,2]
[424894704,1781250648000,-761.81995012,0.00013699,2]
[424894752,1781250648000,-494.47000223,0.00013952,2]
[424894700,1781250648000,-500.0,0.00013699,2]
[424894701,1781250648000,-500.0,0.00013699,2]
[424894702,1781250648000,-500.0,0.00013699,2]
[424894697,1781250648000,-500.0,0.00013699,2]
[424894696,1781250648000,-500.0,0.00013699,2]
[424894699,1781250648000,-500.0,0.00013699,2]
[424894703,1781250648000,-500.0,0.00013699,2]
[424894706,1781250648000,-761.81995012,0.00013699,2]
[424894716,1781250648000,-761.81995012,0.00013699,2]
[424894705,1781250648000,-761.81995012,0.00013699,2]
[424894710,1781250648000,-761.81995012,0.00013699,2]
[424894709,1781250648000,-761.81995012,0.00013699,2]
[424894708,1781250648000,-761.81995012,0.00013699,2]
[424894707,1781250648000,-761.81995012,0.00013699,2]
[424894712,1781250648000,-761.81995012,0.00013699,2]
[424894713,1781250648000,-761.81995012,0.00013699,2]
[424894711,1781250648000,-761.81995012,0.00013699,2]
[424894714,1781250648000,-761.81995012,0.00013699,2]
[424894715,1781250648000,-761.81995012,0.00013699,2]
[424894717,1781250648000,-761.81995012,0.00013699,2]
[424894719,1781250648000,-761.81995012,0.00013699,2]
[424894722,1781250648000,-761.81995012,0.00013699,2]
[424894720,1781250648000,-761.81995012,0.00013699,2]
[424894723,1781250648000,-761.81995012,0.00013699,2]
[424894718,1781250648000,-761.81995012,0.00013699,2]
[424894753,1781250648000,-674.69498212,0.00013952,2]
[424894727,1781250648000,-761.81995012,0.00013699,2]
[424894751,1781250648000,-803.18078731,0.00013952,2]
[424894787,1781250648000,-182.544241,0.00014659,2]
[424894788,1781250648000,-284.019482,0.00014659,2]
[424894786,1781250648000,-1629.74,0.00014607,2]
[424894790,1781250648000,-604.25,0.00014666,2]
[424894791,1781250648000,-165.869132,0.000147,2]
[424894792,1781250648000,-210.902899,0.000147,2]
[424894799,1781250648000,-235.310934,0.00014732,2]
[424894801,1781250648000,-6469.3022716,0.00014783,2]
[424894794,1781250648000,-228.433654,0.000147,2]
[424894796,1781250648000,-200.0,0.000147,5]
[424894811,1781250648000,-1080.25395314,0.0001485,2]
[424894807,1781250648000,-150.0,0.00014801,2]
[424894805,1781250648000,-200.0,0.000148,5]
[424894803,1781250648000,-244.0,0.00014794,2]
[424894809,1781250648000,-317.390632,0.00014805,2]
[424894816,1781250648000,-158.0,0.00014876,2]
[424894813,1781250648000,-236.0,0.00014857,2]
[424894818,1781250648000,-301.49697,0.0001488,2]
[424894820,1781250648000,-8686.0196,0.00014883,2]
[424894822,1781250648000,-4439.0,0.00014896,5]
[424894836,1781250648000,-494.47000223,0.000149,2]
[424894824,1781250648000,-4689.0,0.00014896,5]
[424894827,1781250648000,-3396.02054755,0.000149,3]
[424894831,1781250648000,-803.18078731,0.000149,2]
[424894834,1781250648000,-5800.0,0.000149,2]
[424894838,1781250648000,-842.69404067,0.000149,3]
[424894750,1781250648000,-166.66,0.00013895,2]
[424894789,1781250648000,-242.609139,0.00014659,2]
[424894785,1781250648000,-1194.633,0.00014601,2]
[424894829,1781250648000,-21603.97945245,0.000149,3]
[424894782,1781250648000,-334.56856859,0.00014601,2]
[424894784,1781250648000,-882.93174591,0.00014601,2]
[424894766,1781250648000,-1821.73,0.0001431,2]
[424894765,1781250648000,-900.0,0.000143,5]
[424894767,1781250648000,-1200.0,0.000144,5]
[424894758,1781250648000,-500.0,0.00014022,2]
[424894760,1781250648000,-2005.94132076,0.00014034,2]
[424894761,1781250648000,-400.0,0.000141,5]
[424894759,1781250648000,-521.10889434,0.00014022,2]
[424894763,1781250648000,-494.47000223,0.00014268,2]
[424894762,1781250648000,-700.0,0.000142,5]
[424894764,1781250648000,-674.69498212,0.00014268,2]
[424894768,1781250648000,-908.1101,0.00014404,2]
[424894769,1781250648000,-803.18078731,0.00014426,2]
[424894756,1781250648000,-307.97603717,0.00014018,2]
[424894778,1781250648000,-4923.92781698,0.00014578,2]
[424894783,1781250648000,-590.21861268,0.00014601,2]
[424894770,1781250648000,-1237.51,0.00014497,2]
[424894780,1781250648000,-674.69498212,0.00014584,2]
[424894781,1781250648000,-200.0,0.000146,5]
[424894771,1781250648000,-19762.59,0.00014497,2]
[424894775,1781250648000,-9999.99,0.00014504,2]
[424894757,1781250648000,-500.0,0.00014022,2]
[424894779,1781250648000,-494.47000223,0.00014584,2]
[424894772,1781250648000,-594.27,0.00014497,2]
[424894776,1781250648000,-150.99,0.00014504,2]
[424894773,1781250648000,-1921.35,0.00014497,2]
[424894777,1781250648000,-999.99,0.00014504,2]
[424894774,1781250648000,-200.0,0.000145,5]
[424894902,1781250649000,-289.40693849,0.00014957,2]
[424894904,1781250649000,-16110.2471707,0.00014957,2]
[424894900,1781250649000,-2000.0,0.00014956,2]
[424894898,1781250649000,-250.0,0.00014956,2]
[424894914,1781250649000,-9590.311832,0.00014958,2]
[424894896,1781250649000,-27905.12589463,0.00014956,2]
[424894912,1781250649000,-299141.1725339,0.00014958,2]
[424894910,1781250649000,-500.0,0.00014957,2]
[424894908,1781250649000,-386828.97565588,0.00014957,2]
[424894852,1781250649000,-190.36690243,0.00014907,10]
[424894858,1781250649000,-191709.47255905,0.00014956,2]
[424894850,1781250649000,-11088.69428331,0.000149,2]
[424894856,1781250649000,-16334.99755422,0.00014956,2]
[424894843,1781250649000,-371.42617152,0.000149,2]
[424894853,1781250649000,-301.49696,0.0001492,2]
[424894845,1781250649000,-649.0,0.000149,5]
[424894847,1781250649000,-2965.60883088,0.000149,2]
[424894840,1781250649000,-674.69498212,0.000149,2]
[424894906,1781250649000,-24783.18924582,0.00014957,2]
[424894894,1781250649000,-160.0,0.00012077,2]
[424894855,1781250649000,-500.0,0.00014955,2]
[424894854,1781250649000,-1345.29671232,0.00014948,2]
[424894919,1781250649000,-7366.14781199,0.00014969,2]
[424894921,1781250649000,-301.49696,0.0001497,2]
[424894959,1781250649000,-500.0,0.00014999,2]
[424894957,1781250649000,-500.0,0.00014999,2]
[424894953,1781250649000,-1345.29671232,0.0001499,2]
[424894958,1781250649000,-500.0,0.00014999,2]
[424894950,1781250649000,-14893.3620085,0.00014988,2]
[424894955,1781250649000,-1345.29671232,0.0001499,2]
[424894952,1781250649000,-9590.311832,0.0001499,2]
[424894948,1781250649000,-20492.962995,0.00014988,2]
[424894947,1781250649000,-802.0819773,0.00014988,2]
[424894916,1781250649000,-9590.311832,0.00014969,2]
[424894945,1781250649000,-11747.2386678,0.00014988,2]
[424894934,1781250649000,-3594.6820312,0.00014983,2]
[424894932,1781250649000,-20552.04807736,0.00014982,2]
[424894936,1781250649000,-91843.0882735,0.00014983,2]
[424894938,1781250649000,-66747.4177344,0.00014983,2]
[424894942,1781250649000,-151.0,0.00014988,2]
[424894929,1781250649000,-32095.42306684,0.00014982,2]
[424894923,1781250649000,-500.0,0.00014973,2]
[424894927,1781250649000,-500.0,0.00014982,2]
[424894940,1781250649000,-7377.19257183,0.00014988,2]
[424894925,1781250649000,-9590.311832,0.00014979,2]
[424894971,1781250650000,-822.6565069,0.00012701,2]
[424894970,1781250650000,-1949.09749113,0.00012701,2]
[424894967,1781250650000,-9041.84353516,0.00015,2]
[424894968,1781250650000,-2100.13486294,0.00015,2]
[424894960,1781250650000,-500.0,0.00014999,2]
[424894966,1781250650000,-2000.0,0.00014999,2]
[424894962,1781250650000,-500.0,0.00014999,2]
[424894963,1781250650000,-500.0,0.00014999,2]
[424894969,1781250650000,-1830.02600197,0.00012701,2]
[424894964,1781250650000,-308.56,0.00014999,2]
[424894972,1781250650000,-220.330265,0.00014659,2]
[424894961,1781250650000,-500.0,0.00014999,2]
[424894976,1781250650000,-9077.54866152,0.00015,2]
[424894974,1781250650000,-8947.21879473,0.00015,2]
[424894984,1781250650000,-693.99950253,0.00015,2]
[424894982,1781250650000,-117176.58924817,0.00015,2]
[424894983,1781250650000,-2982.45583009,0.00015,2]
[424894981,1781250650000,-100300.46967395,0.00015,2]
[424894965,1781250650000,-250.0,0.00014999,2]
[424894979,1781250650000,-654.69796351,0.00015,2]
[424894978,1781250650000,-80985.18213892,0.00015,2]
[424894977,1781250650000,-246.218187,0.00014659,2]
[424894973,1781250650000,-7804.48150692,0.00015,2]
[424894980,1781250650000,-394676.43123298,0.00015,2]
[424894975,1781250650000,-8943.78386462,0.00015,2]
[424894990,1781250669000,-532.0,0.00015,2]
[424894989,1781250669000,-71422.79455302,0.00015,2]
[424894988,1781250669000,-15943.02916873,0.00015,2]
[424894987,1781250669000,-292.701,0.00015,2]
[424894986,1781250669000,-447.18795648,0.00015,2]
[424894985,1781250669000,-17193.58864179,0.00015,2]
[424894991,1781250687000,-657.0,0.00011973,2]
[424894992,1781250706000,-340.95,0.00011973,2]
[424894993,1781250730000,-299.99,0.00011973,2]
[424894997,1781250753000,-299.99,0.00011973,2]
[424894998,1781250772000,-9999.99,0.00011973,2]
[424895000,1781250812000,298.81,0.00015758,63]
[424895003,1781251027000,-196.0,0.00011733,2]
[424895004,1781251048000,-196.0,0.00011733,2]
[424895009,1781251067000,-999.99,0.00011733,2]
[424895010,1781251089000,-999.99,0.00011733,2]
[424895014,1781251110000,-15.073,0.00011733,2]
[424895015,1781251160000,-184.188,0.00011733,2]
[424895017,1781251214000,-499.341204,0.00011873,2]
[424895019,1781251245000,-475.9542,0.00011873,2]
[424895020,1781251245000,-2000.0,0.00011873,2]
[424895021,1781251245000,-164.82333411,0.00011873,2]
[424895023,1781251245000,-1090.72861749,0.00011873,2]
[424895025,1781251245000,-160.94387983,0.00011972,2]
[424895024,1781251245000,-3632.48394541,0.000119,2]
[424895022,1781251245000,-152.39222593,0.00011873,2]
[424895027,1781251269000,-1798.80895522,0.00011973,2]
[424895028,1781251271000,-5022.67379723,0.00011973,2]
[424895029,1781251289000,-1865.36488656,0.00011973,2]
[424895030,1781251313000,-320.0,0.00011973,2]
[424895031,1781251314000,-31100.0,0.00011973,2]
[424895035,1781251500000,-397.2,0.00011733,2]
[424895036,1781251524000,-1528.443,0.00011733,2]
[424895037,1781251578000,-184.188,0.00011733,2]
[424895038,1781251631000,-164.82333407,0.00011873,2]
[424895039,1781251685000,-400.0,0.000118,4]
[424895043,1781251697000,-7988.4936412,0.00011973,2]
[424895041,1781251697000,-160.0,0.00011875,2]
[424895042,1781251697000,-800.0,0.000119,4]
[424895040,1781251697000,-1051.5063588,0.00011873,2]
[424895044,1781251698000,-10000.0,0.00011973,2]
[424895045,1781251704000,-3045.0,0.00011973,2]
[424895046,1781251738000,-2500.0,0.00011973,2]
[424895047,1781251762000,-217.71,0.00011988,2]
[424895048,1781251814000,-3168.52757685,0.00011873,2]
[424895053,1781251833000,-2075.76036953,0.00011873,2]
[424895059,1781251834000,-388.27097375,0.00011873,2]
[424895054,1781251834000,-220.3253372,0.00011863,2]
[424895055,1781251834000,-74309.21191103,0.00011873,2]
[424895058,1781251834000,-93360.26465356,0.00011873,2]
[424895057,1781251834000,-71709.23558064,0.00011873,2]
[424895056,1781251834000,-706.95471448,0.00011873,2]
[424895107,1781251852000,-2075.76036953,0.00011873,2]
[424895109,1781251852000,-7492.81015676,0.00011873,2]
[424895108,1781251852000,-750.87646348,0.00011873,2]
[424895110,1781251852000,-2604.52561718,0.00011873,2]
[424895111,1781251852000,-931.85130686,0.00011873,2]
[424895112,1781251852000,-394676.43123298,0.00011873,2]
[424895113,1781251852000,-43512.79744818,0.00011873,2]
[424895114,1781251852000,-365.82715743,0.00011873,2]
[424895118,1781251852000,-8943.78386462,0.00011873,2]
[424895119,1781251852000,-9077.54866152,0.00011873,2]
[424895115,1781251852000,-387.30620092,0.00011873,2]
[424895120,1781251852000,-0.36141978,0.00011873,2]
[424895122,1781251852000,-472397.76982841,0.00011873,2]
[424895121,1781251852000,-1264.28,0.00011873,2]
[424895123,1781251852000,-682.20163026,0.00011873,2]
[424895124,1781251852000,-17850.4561057,0.00011873,2]
[424895126,1781251852000,-2117.03160225,0.00011873,2]
[424895125,1781251852000,-546.0,0.00011873,2]
[424895127,1781251852000,-31071.06373758,0.00011873,2]
[424895117,1781251852000,-8947.21879473,0.00011873,2]
[424895116,1781251852000,-8847.46827882,0.00011873,2]
[424895129,1781251931000,-176.44687576,0.00011073,2]
[424895131,1781251931000,-9407.97316962,0.00011873,2]
[424895130,1781251931000,-220.0,0.0001121,2]
[424895128,1781251931000,-195.57995462,0.00011073,2]
[424895132,1781251932000,-10000.0,0.00011873,2]
[424895133,1781251933000,-10000.0,0.00011873,2]
[424895134,1781251934000,-10000.0,0.00011873,2]
[424895135,1781251935000,-10000.0,0.00011873,2]
[424895136,1781251936000,-10000.0,0.00011873,2]
[424895137,1781251938000,-10000.0,0.00011873,2]
[424895138,1781251939000,-10000.0,0.00011873,2]
[424895139,1781251940000,-10000.0,0.00011873,2]
[424895140,1781251940000,-10000.0,0.00011873,2]
[424895142,1781252109000,-27994.5096454,0.000118,2]
[424895143,1781252128000,-196.11394067,0.000115,4]
[424895145,1781252132000,-900.0,0.000116,4]
[424895146,1781252132000,-1400.0,0.000117,4]
[424895147,1781252132000,-196.11394067,0.00011772,2]
[424895149,1781252132000,-150.0,0.00011799,2]
[424895148,1781252132000,-1095.10153656,0.00011772,2]
[424895151,1781252132000,-500.0,0.00011872,2]
[424895144,1781252132000,-203.88605933,0.000115,4]
[424895152,1781252132000,-500.0,0.00011872,2]
[424895153,1781252132000,-500.0,0.00011872,2]
[424895154,1781252132000,-500.0,0.00011872,2]
[424895155,1781252132000,-500.0,0.00011872,2]
[424895157,1781252132000,-1407.54746944,0.00011873,2]
[424895150,1781252132000,-1900.0,0.000118,4]
[424895156,1781252132000,-247.350994,0.00011873,2]
[424895159,1781252133000,-2565.53719589,0.00011873,2]
[424895158,1781252133000,-7434.46280411,0.00011873,2]
[424895160,1781252134000,-10000.0,0.00011873,2]
[424895161,1781252135000,-10000.0,0.00011873,2]
[424895162,1781252136000,-10000.0,0.00011873,2]
[424895163,1781252180000,-27994.5096454,0.000118,2]
[424895164,1781252200000,-27994.5096454,0.000118,2]
[424895165,1781252219000,-1500.0,0.000118,2]
[424895168,1781252220000,-8684.29288702,0.000118,2]
[424895167,1781252220000,-199.48738674,0.00011799,3]
[424895166,1781252220000,-1116.21972624,0.00011799,3]
[424895169,1781252241000,-1500.0,0.00011773,2]
[424895170,1781252261000,-223.0,0.000114,4]
[424895171,1781252282000,-223.0,0.000114,4]
[424895172,1781252302000,-654.0,0.000114,4]
[424895174,1781252304000,-3400.0,0.000116,4]
[424895173,1781252304000,-2200.0,0.000115,4]
[424895175,1781252305000,-4400.0,0.000117,4]
[424895183,1781252310000,-121.25698075,0.0001177,2]
[424895182,1781252310000,-7092.0,0.00011753,2]
[424895181,1781252310000,-100.0,0.000117,4]
[424895179,1781252310000,-1008.28508206,0.00011673,2]
[424895180,1781252310000,-1008.28508204,0.00011687,2]
[424895178,1781252310000,-250.0,0.00011513,2]
[424895176,1781252310000,-200.52143226,0.000108,2]
[424895177,1781252310000,-219.65142289,0.00010973,2]
[424895187,1781252315000,-1900.0,0.00011673,2]
[424895185,1781252315000,-2700.0,0.000115,4]
[424895186,1781252315000,-4100.0,0.000116,4]
[424895184,1781252315000,-1300.0,0.000114,4]
[424895189,1781252331000,-6907.9276,0.00011673,2]
[424895188,1781252331000,-3092.0724,0.00011673,2]
[424895190,1781252356000,-760.29,0.00011673,2]
[424895194,1781252363000,-344.37516846,0.00011658,2]
[424895195,1781252363000,-7055.62483154,0.00011673,2]
[424895193,1781252363000,-1300.0,0.000116,4]
[424895192,1781252363000,-900.0,0.000115,4]
[424895191,1781252363000,-400.0,0.000114,4]
[424895197,1781252466000,-8335.25431397,0.000116,2]
[424895196,1781252466000,-293.92,0.00010819,2]
[424895199,1781252466000,-1170.82568603,0.0001167,2]
[424895198,1781252466000,-200.0,0.000116,4]
[424895200,1781252471000,-10000.0,0.0001167,2]
[424895202,1781252495000,-929.18140028,0.00011599,2]
[424895201,1781252495000,-929.18140028,0.00011599,2]
[424895203,1781252495000,-929.18140028,0.00011599,2]
[424895205,1781252495000,-929.18140028,0.00011599,2]
[424895204,1781252495000,-929.18140028,0.00011599,2]
[424895209,1781252495000,-929.18140028,0.00011599,2]
[424895207,1781252495000,-929.18140028,0.00011599,2]
[424895208,1781252495000,-929.18140028,0.00011599,2]
[424895210,1781252495000,-929.18140028,0.00011599,2]
[424895211,1781252495000,-708.1859972,0.00011599,2]
[424895206,1781252495000,-929.18140028,0.00011599,2]
[424895215,1781252496000,-929.18140028,0.00011599,2]
[424895212,1781252496000,-220.99540308,0.00011599,2]
[424895214,1781252496000,-929.18140028,0.00011599,2]
[424895213,1781252496000,-929.18140028,0.00011599,2]
[424895218,1781252496000,-929.18140028,0.00011599,2]
[424895216,1781252496000,-929.18140028,0.00011599,2]
[424895217,1781252496000,-929.18140028,0.00011599,2]
[424895220,1781252496000,-929.18140028,0.00011599,2]
[424895219,1781252496000,-929.18140028,0.00011599,2]
[424895221,1781252496000,-929.18140028,0.00011599,2]
[424895222,1781252496000,-929.18140028,0.00011599,2]
[424895223,1781252496000,-487.19059412,0.00011599,2]
[424895224,1781252552000,-1000.0,0.00010781,2]
[424895225,1781252581000,-1000.0,0.00010781,2]
[424895226,1781252582000,-1000.0,0.00010781,2]
[424895229,1781252583000,-210.8,0.00010781,2]
[424895230,1781252590000,160.71103448,0.00018904,30]
[424895231,1781252594000,165.58550706,0.00019332,90]
[424895232,1781252604000,380.53613829,0.00018049,120]
[424895233,1781252607000,-1000.0,0.0001105,2]
[424895234,1781252608000,1001.0,0.00016553,120]
[424895236,1781252626000,-1000.0,0.0001105,2]
[424895235,1781252626000,-151.0,0.0001105,2]
[424895237,1781252626000,-59.8,0.0001105,2]
[424895238,1781252646000,-1500.0,0.0001132,2]
[424895246,1781252647000,-500.0,0.00011598,2]
[424895247,1781252647000,-138.24983018,0.00011598,2]
[424895244,1781252647000,-181.53160301,0.00011598,2]
[424895245,1781252647000,-348.25930515,0.00011598,2]
[424895243,1781252647000,-258.69113568,0.00011598,2]
[424895242,1781252647000,-150.0,0.00011597,2]
[424895239,1781252647000,-710.8,0.0001132,2]
[424895240,1781252647000,-231.06812598,0.00011498,2]
[424895241,1781252647000,-2210.8,0.00011589,2]
[424895248,1781252666000,-361.75016982,0.00011598,2]
[424895249,1781252693000,-515.96,0.00010779,2]
[424895250,1781252719000,-151.0,0.00010828,2]
[424895255,1781252720000,-1000.0,0.00010828,2]
[424895254,1781252720000,-1000.0,0.00010828,2]
[424895253,1781252720000,-1000.0,0.00010828,2]
[424895252,1781252720000,-1000.0,0.00010828,2]
[424895251,1781252720000,-1000.0,0.00010828,2]
[424895256,1781252724000,-225.0,0.00010828,2]
[424895257,1781252747000,-151.0,0.00011033,2]
[424895259,1781252747000,-17.99,0.00011033,2]
[424895258,1781252747000,-152.88,0.00010717,2]
[424895262,1781252747000,-300.0,0.00011392,2]
[424895261,1781252747000,-181.26314457,0.00011363,2]
[424895263,1781252747000,-300.0,0.00011392,2]
[424895260,1781252747000,-300.0,0.00011162,2]
[424895264,1781252748000,-3006.90685543,0.00011476,2]
[424895265,1781252767000,-151.0,0.00011476,2]
[424895266,1781252787000,-760.29,0.00011476,2]
[424895267,1781252811000,-151.0,0.00010768,2]
[424895268,1781252811000,-49.0,0.00010768,2]
[424895271,1781252811000,-10000.0,0.00011476,2]
[424895270,1781252811000,-10000.0,0.00011476,2]
[424895269,1781252811000,-9951.0,0.00011476,2]
[424895272,1781252835000,-4998.14,0.00011476,2]
[424895273,1781252858000,-150.0,0.00011475,2]
[424895274,1781252865000,-440.59350111,0.00010675,2]
[424895279,1781252865000,-684.89979584,0.00011475,2]
[424895275,1781252865000,-458.24217393,0.00010676,2]
[424895277,1781252865000,-150.0,0.00011233,2]
[424895278,1781252865000,-243.78151361,0.00011475,2]
[424895280,1781252865000,-237.48301551,0.00011475,2]
[424895276,1781252865000,-150.0,0.00010959,2]
[424895283,1781253002000,-1576.23884672,0.00010757,2]
[424895282,1781253002000,-1845.74708978,0.00010757,2]